[Event "*** Monthly 3|2 Blitz Masters"]
[Site "Chess.com"]
[Date "2014.10.28"]
[Round "6"]
[White "wannabe2700"]
[Black "VovAn1991"]
[Result "0-1"]
[WhiteElo "2254"]
[BlackElo "2325"]
[TimeControl "180+2"]
[EndTime "13:03:11 PDT"]
[Termination "VovAn1991 won by checkmate"]

1. d4 {[%clk 0:03:00]} 1... Nf6 {[%clk 0:02:57.3]} 2. c4 {[%clk 0:03:01]} 2...
g6 {[%clk 0:02:58.2]} 3. Nc3 {[%clk 0:03:01.3]} 3... Bg7 {[%clk 0:02:59.4]} 4.
e4 {[%clk 0:03:01.9]} 4... d6 {[%clk 0:02:59.8]} 5. Nf3 {[%clk 0:03:03.2]} 5...
O-O {[%clk 0:03:00.7]} 6. Be2 {[%clk 0:03:04.6]} 6... e5 {[%clk 0:03:00.5]} 7.
O-O {[%clk 0:03:05.8]} 7... Nbd7 {[%clk 0:03:00.3]} 8. Re1 {[%clk 0:03:05.3]}
8... Re8 {[%clk 0:03:00.7]} 9. dxe5 {[%clk 0:02:49.6]} 9... dxe5 {[%clk
0:02:59.3]} 10. Be3 {[%clk 0:02:50.5]} 10... c6 {[%clk 0:02:59.8]} 11. Qc2
{[%clk 0:02:48.6]} 11... Nf8 {[%clk 0:02:57.2]} 12. Rad1 {[%clk 0:02:49]} 12...
Qc7 {[%clk 0:02:58.5]} 13. Bc5 {[%clk 0:02:48.6]} 13... Nh5 {[%clk 0:02:55.4]}
14. Bd6 {[%clk 0:02:48.4]} 14... Qb6 {[%clk 0:02:25]} 15. Na4 {[%clk 0:02:39.2]}
15... Qa6 {[%clk 0:02:22.8]} 16. Nc5 {[%clk 0:02:28.1]} 16... Qa5 {[%clk
0:02:20.6]} 17. Nd2 {[%clk 0:02:14.1]} 17... Nf4 {[%clk 0:02:12.9]} 18. Bf1
{[%clk 0:02:11.1]} 18... Qd8 {[%clk 0:01:56.1]} 19. Nf3 {[%clk 0:02:04]} 19...
Qf6 {[%clk 0:01:55.6]} 20. Qc3 {[%clk 0:01:59.4]} 20... Bg4 {[%clk 0:01:50.9]}
21. Re3 {[%clk 0:01:11.9]} 21... b6 {[%clk 0:01:37.3]} 22. Na6 {[%clk
0:01:05.3]} 22... Rad8 {[%clk 0:01:35.4]} 23. Nc7 {[%clk 0:01:04.3]} 23... Re6
{[%clk 0:01:16.3]} 24. Nxe6 {[%clk 0:01:00.5]} 24... Qxe6 {[%clk 0:01:17.3]} 25.
g3 {[%clk 0:00:34.9]} 25... Rxd6 {[%clk 0:01:11.8]} 26. Rxd6 {[%clk 0:00:34.9]}
26... Qxd6 {[%clk 0:01:13.7]} 27. gxf4 {[%clk 0:00:36.1]} 27... exf4 {[%clk
0:01:14.1]} 28. e5 {[%clk 0:00:36.9]} 28... fxe3 {[%clk 0:01:10.4]} 29. exd6
{[%clk 0:00:36]} 29... Bxc3 {[%clk 0:01:11.5]} 30. Ng5 {[%clk 0:00:13.7]} 30...
exf2+ {[%clk 0:01:04.6]} 31. Kxf2 {[%clk 0:00:13.6]} 31... Bxb2 {[%clk
0:01:05.8]} 32. Kg3 {[%clk 0:00:14.6]} 32... h5 {[%clk 0:01:05]} 33. Ne4 {[%clk
0:00:15.1]} 33... Be5+ {[%clk 0:01:04.4]} 34. Kf2 {[%clk 0:00:16.6]} 34... f5
{[%clk 0:01:05.3]} 35. Ng5 {[%clk 0:00:16.6]} 35... Bxd6 {[%clk 0:01:04]} 36. h3
{[%clk 0:00:18]} 36... Bd1 {[%clk 0:01:04.8]} 37. Bd3 {[%clk 0:00:17.4]} 37...
Bf4 {[%clk 0:01:03.8]} 38. h4 {[%clk 0:00:18.5]} 38... Bxg5 {[%clk 0:01:04.6]}
39. hxg5 {[%clk 0:00:20.4]} 39... Ne6 {[%clk 0:01:06.2]} 40. Kg3 {[%clk
0:00:21.5]} 40... Nxg5 {[%clk 0:01:07.3]} 41. Kh4 {[%clk 0:00:23.1]} 41... Ne6
{[%clk 0:01:08.1]} 42. Kg3 {[%clk 0:00:24.5]} 42... Kf7 {[%clk 0:01:09.1]} 43.
Kh4 {[%clk 0:00:25.8]} 43... Kf6 {[%clk 0:01:10.2]} 44. Kg3 {[%clk 0:00:27.3]}
44... g5 {[%clk 0:01:11.6]} 45. Kh3 {[%clk 0:00:28.5]} 45... h4 {[%clk
0:01:12.9]} 46. Kg2 {[%clk 0:00:29.7]} 46... Nf4+ {[%clk 0:01:14.2]} 47. Kf2
{[%clk 0:00:29.8]} 47... Nxd3+ {[%clk 0:01:16.1]} 48. Ke3 {[%clk 0:00:31.5]}
48... Nf4 {[%clk 0:01:15.4]} 49. Kd4 {[%clk 0:00:32.7]} 49... Bf3 {[%clk
0:01:16.3]} 50. Ke3 {[%clk 0:00:34.1]} 50... Be4 {[%clk 0:01:16.9]} 51. Kd4
{[%clk 0:00:35.7]} 51... c5+ {[%clk 0:01:18]} 52. Ke3 {[%clk 0:00:37.2]} 52...
h3 {[%clk 0:01:19]} 53. a4 {[%clk 0:00:38.9]} 53... h2 {[%clk 0:01:20.1]} 54. a5
{[%clk 0:00:40.2]} 54... h1=Q {[%clk 0:01:21.2]} 55. axb6 {[%clk 0:00:42.1]}
55... Qe1# {[%clk 0:01:22]} 0-1

[Event "*** Monthly 3|2 Blitz Masters"]
[Site "Chess.com"]
[Date "2014.10.28"]
[Round "6"]
[White "lorcho"]
[Black "HZMC92"]
[Result "1-0"]
[WhiteElo "2480"]
[BlackElo "2151"]
[TimeControl "180+2"]
[EndTime "13:03:17 PDT"]
[Termination "lorcho won by resignation"]

1. e4 {[%clk 0:03:00]} 1... c5 {[%clk 0:02:58.9]} 2. Nc3 {[%clk 0:03:01.5]} 2...
d6 {[%clk 0:03:00.1]} 3. d3 {[%clk 0:03:03.4]} 3... Nc6 {[%clk 0:03:01.6]} 4. g3
{[%clk 0:03:04.6]} 4... g6 {[%clk 0:03:03.1]} 5. Bg2 {[%clk 0:03:06]} 5... Bg7
{[%clk 0:03:04.6]} 6. f4 {[%clk 0:03:07.3]} 6... e6 {[%clk 0:03:06]} 7. Nf3
{[%clk 0:03:08.8]} 7... Nge7 {[%clk 0:03:07.4]} 8. O-O {[%clk 0:03:10.7]} 8...
b6 {[%clk 0:03:08.3]} 9. Be3 {[%clk 0:03:11.6]} 9... Ba6 {[%clk 0:03:08.3]} 10.
a4 {[%clk 0:03:12]} 10... Rb8 {[%clk 0:03:09.1]} 11. Rf2 {[%clk 0:03:12.6]}
11... O-O {[%clk 0:03:10.2]} 12. d4 {[%clk 0:03:13]} 12... cxd4 {[%clk
0:03:10.1]} 13. Nxd4 {[%clk 0:03:13.7]} 13... Nxd4 {[%clk 0:03:08]} 14. Bxd4
{[%clk 0:03:15.6]} 14... Qc7 {[%clk 0:03:08.8]} 15. Nb5 {[%clk 0:03:12.1]} 15...
Bxb5 {[%clk 0:03:06.5]} 16. axb5 {[%clk 0:03:14]} 16... Bxd4 {[%clk 0:03:07]}
17. Qxd4 {[%clk 0:03:14.3]} 17... Rb7 {[%clk 0:03:03.8]} 18. Rd2 {[%clk
0:03:10]} 18... Qc5 {[%clk 0:03:02.8]} 19. Qxc5 {[%clk 0:03:02.6]} 19... dxc5
{[%clk 0:03:03.7]} 20. c4 {[%clk 0:03:03]} 20... Rc7 {[%clk 0:03:01.1]} 21. Rad1
{[%clk 0:03:00]} 21... Kg7 {[%clk 0:02:58.1]} 22. Rd7 {[%clk 0:02:59.6]} 22...
Rfc8 {[%clk 0:02:57.1]} 23. g4 {[%clk 0:02:53.2]} 23... Kf8 {[%clk 0:02:45.9]}
24. Rd8+ {[%clk 0:02:49.2]} 24... Rxd8 {[%clk 0:02:40.5]} 25. Rxd8+ {[%clk
0:02:51.1]} 25... Kg7 {[%clk 0:02:42.4]} 26. Bf3 {[%clk 0:02:43]} 26... Kf6
{[%clk 0:02:37.8]} 27. e5+ {[%clk 0:02:42.6]} 27... Kg7 {[%clk 0:02:38.8]} 28.
Kf2 {[%clk 0:02:34.9]} 28... g5 {[%clk 0:02:35.9]} 29. fxg5 {[%clk 0:02:22.2]}
29... Ng6 {[%clk 0:02:36.8]} 30. Be2 {[%clk 0:02:20.3]} 30... Nxe5 {[%clk
0:02:34]} 31. h4 {[%clk 0:02:11.6]} 31... Rd7 {[%clk 0:02:34.7]} 32. Rxd7 {[%clk
0:02:10.8]} 32... Nxd7 {[%clk 0:02:35.5]} 33. Ke3 {[%clk 0:02:10.8]} 33... h6
{[%clk 0:02:33.8]} 34. gxh6+ {[%clk 0:02:10.1]} 34... Kxh6 {[%clk 0:02:34.8]}
35. Kf4 {[%clk 0:02:11.1]} 35... Kg6 {[%clk 0:02:33.8]} 36. Bd3+ {[%clk
0:02:11.4]} 36... Kg7 {[%clk 0:02:34.8]} 37. Be4 {[%clk 0:02:07.1]} 37... f6
{[%clk 0:02:35]} 38. b3 {[%clk 0:01:52.7]} 38... Ne5 {[%clk 0:02:34.2]} 39. g5
{[%clk 0:01:53.6]} 39... Nd7 {[%clk 0:02:16.7]} 40. h5 {[%clk 0:01:51.5]} 40...
f5 {[%clk 0:02:07.6]} 41. Bc6 {[%clk 0:01:42.3]} 41... Nf8 {[%clk 0:02:08.6]}
42. Be8 {[%clk 0:01:35.7]} 42... Nh7 {[%clk 0:02:07.2]} 43. h6+ {[%clk
0:01:35.9]} 43... Kf8 {[%clk 0:02:07.1]} 44. Bg6 {[%clk 0:01:34.6]} 44... Kg8
{[%clk 0:02:04.5]} 45. Bh5 {[%clk 0:01:31.6]} 45... Nf8 {[%clk 0:02:02.6]} 46.
Ke5 {[%clk 0:01:22.5]} 46... Kh7 {[%clk 0:01:59.7]} 47. Kf6 {[%clk 0:01:22.5]}
47... f4 {[%clk 0:01:56.8]} 48. Kf7 {[%clk 0:01:17.1]} 48... Nd7 {[%clk
0:01:42.8]} 49. Kxe6 {[%clk 0:01:11.7]} 49... Nf8+ {[%clk 0:01:40.7]} 50. Kf7
{[%clk 0:01:10.6]} 50... Nd7 {[%clk 0:01:41.2]} 51. Ke6 {[%clk 0:00:57.3]} 51...
Nf8+ {[%clk 0:01:40.7]} 52. Kf5 {[%clk 0:00:58.4]} 52... Nd7 {[%clk 0:01:32.6]}
53. Kxf4 {[%clk 0:00:56.8]} 53... Nb8 {[%clk 0:01:32.9]} 54. Bg4 {[%clk
0:00:52.5]} 54... a6 {[%clk 0:01:33.1]} 55. Bf5+ {[%clk 0:00:52.6]} 55... Kg8
{[%clk 0:01:33.8]} 56. g6 {[%clk 0:00:51.3]} 56... axb5 {[%clk 0:01:35.1]} 57.
Be6+ {[%clk 0:00:52.5]} 57... Kf8 {[%clk 0:01:35.9]} 58. g7+ {[%clk 0:00:53.4]}
58... Ke7 {[%clk 0:01:36.4]} 59. g8=Q {[%clk 0:00:54.4]} 1-0

[Event "*** Monthly 3|2 Blitz Masters"]
[Site "Chess.com"]
[Date "2014.10.28"]
[Round "6"]
[White "jbj"]
[Black "XeresLt"]
[Result "1-0"]
[WhiteElo "2297"]
[BlackElo "2271"]
[TimeControl "180+2"]
[EndTime "13:03:36 PDT"]
[Termination "jbj won by checkmate"]

1. e4 {[%clk 0:02:55.1]} 1... c5 {[%clk 0:02:58.5]} 2. d4 {[%clk 0:02:55.4]}
2... cxd4 {[%clk 0:02:58.8]} 3. c3 {[%clk 0:02:56.6]} 3... dxc3 {[%clk
0:02:59.7]} 4. Nxc3 {[%clk 0:02:58.5]} 4... d6 {[%clk 0:03:00.7]} 5. Nf3 {[%clk
0:02:58.3]} 5... Nc6 {[%clk 0:03:01.8]} 6. Bc4 {[%clk 0:02:59.1]} 6... a6 {[%clk
0:03:02.9]} 7. O-O {[%clk 0:02:57.4]} 7... Nf6 {[%clk 0:03:03.3]} 8. Be3 {[%clk
0:02:55]} 8... g6 {[%clk 0:02:57.1]} 9. Ng5 {[%clk 0:02:49.3]} 9... Ne5 {[%clk
0:02:54.9]} 10. Bb3 {[%clk 0:02:43.8]} 10... h6 {[%clk 0:02:55.7]} 11. f4 {[%clk
0:02:41.2]} 11... hxg5 {[%clk 0:02:53.9]} 12. fxe5 {[%clk 0:02:42.3]} 12... Bg4
{[%clk 0:02:40.8]} 13. Bxf7+ {[%clk 0:02:13.1]} 13... Kxf7 {[%clk 0:02:39]} 14.
Qxg4 {[%clk 0:02:12.7]} 14... dxe5 {[%clk 0:02:39.5]} 15. Qxg5 {[%clk
0:02:11.6]} 15... Bh6 {[%clk 0:02:34.9]} 16. Qg3 {[%clk 0:02:10.7]} 16... Bxe3+
{[%clk 0:02:34.9]} 17. Qxe3 {[%clk 0:02:11.4]} 17... Kg7 {[%clk 0:02:16.6]} 18.
Rad1 {[%clk 0:02:11.1]} 18... Qc8 {[%clk 0:01:57.6]} 19. h3 {[%clk 0:02:03.3]}
19... Qc6 {[%clk 0:01:49.2]} 20. Nd5 {[%clk 0:01:48.3]} 20... Rae8 {[%clk
0:01:45.2]} 21. Qg5 {[%clk 0:01:37.3]} 21... Rh5 {[%clk 0:01:43.9]} 22. Qe3
{[%clk 0:01:17.1]} 22... Rh4 {[%clk 0:01:36.8]} 23. Rc1 {[%clk 0:01:01]} 23...
Qd6 {[%clk 0:01:33.1]} 24. Nxf6 {[%clk 0:00:26.3]} 24... exf6 {[%clk 0:01:35]}
25. Rcd1 {[%clk 0:00:27.6]} 25... Qe6 {[%clk 0:01:32.5]} 26. Rd5 {[%clk
0:00:27.7]} 26... Re7 {[%clk 0:01:32]} 27. Qd3 {[%clk 0:00:23.9]} 27... Rf4
{[%clk 0:01:29.3]} 28. Rc1 {[%clk 0:00:18.4]} 28... Qb6+ {[%clk 0:01:15.9]} 29.
Kh2 {[%clk 0:00:18]} 29... Qxb2 {[%clk 0:01:00.4]} 30. Rc8 {[%clk 0:00:18.7]}
30... Qb4 {[%clk 0:00:21.1]} 31. Rdd8 {[%clk 0:00:15.8]} 31... Qxe4 {[%clk
0:00:21.9]} 32. Rg8+ {[%clk 0:00:16]} 32... Kh6 {[%clk 0:00:23.2]} 33. Rh8+
{[%clk 0:00:16.3]} 33... Kg5 {[%clk 0:00:21.7]} 34. Qg3+ {[%clk 0:00:16.7]}
34... Kf5 {[%clk 0:00:22.1]} 35. Rhg8 {[%clk 0:00:17.4]} 35... g5 {[%clk
0:00:21.3]} 36. Qa3 {[%clk 0:00:14.5]} 36... Rf1 {[%clk 0:00:19.8]} 37. g4+
{[%clk 0:00:12]} 37... Kf4 {[%clk 0:00:20.8]} 38. Qg3# {[%clk 0:00:12.7]} 1-0

[Event "*** Monthly 3|2 Blitz Masters"]
[Site "Chess.com"]
[Date "2014.10.28"]
[Round "6"]
[White "Trendle"]
[Black "GedoGluperd"]
[Result "1-0"]
[WhiteElo "2211"]
[BlackElo "2268"]
[TimeControl "180+2"]
[EndTime "13:04:08 PDT"]
[Termination "Trendle won on time"]

1. e4 {[%clk 0:03:00]} 1... g6 {[%clk 0:02:59.5]} 2. d4 {[%clk 0:03:00.7]} 2...
Bg7 {[%clk 0:03:01.1]} 3. Nc3 {[%clk 0:03:02.3]} 3... d6 {[%clk 0:03:02.5]} 4.
Be3 {[%clk 0:03:03.7]} 4... a6 {[%clk 0:03:03.5]} 5. Qd2 {[%clk 0:03:05.3]} 5...
b5 {[%clk 0:03:04.4]} 6. h4 {[%clk 0:03:06.9]} 6... h5 {[%clk 0:02:59.9]} 7. Nf3
{[%clk 0:03:06.3]} 7... Nf6 {[%clk 0:02:58.8]} 8. Ng5 {[%clk 0:03:07.3]} 8...
Ng4 {[%clk 0:02:58.9]} 9. Bf4 {[%clk 0:02:53.1]} 9... Nc6 {[%clk 0:02:51]} 10.
d5 {[%clk 0:02:47]} 10... Nce5 {[%clk 0:02:43.2]} 11. f3 {[%clk 0:02:47.6]}
11... Nf6 {[%clk 0:02:44.2]} 12. a4 {[%clk 0:02:48.1]} 12... Bd7 {[%clk
0:02:41.6]} 13. axb5 {[%clk 0:02:22.4]} 13... axb5 {[%clk 0:02:42.3]} 14. Rxa8
{[%clk 0:02:24]} 14... Qxa8 {[%clk 0:02:43.4]} 15. Bxb5 {[%clk 0:02:25.6]} 15...
Qa1+ {[%clk 0:02:41]} 16. Qc1 {[%clk 0:02:25.2]} 16... Qa7 {[%clk 0:02:32.2]}
17. Be3 {[%clk 0:02:19.5]} 17... Qa5 {[%clk 0:02:30.7]} 18. Be2 {[%clk
0:02:14.4]} 18... O-O {[%clk 0:02:25.2]} 19. O-O {[%clk 0:02:16]} 19... Rb8
{[%clk 0:02:22.9]} 20. Kh1 {[%clk 0:02:01.8]} 20... c5 {[%clk 0:02:22.2]} 21.
Bd2 {[%clk 0:01:56.1]} 21... Qb4 {[%clk 0:02:17.9]} 22. Nd1 {[%clk 0:01:51.6]}
22... Qa4 {[%clk 0:02:15.7]} 23. Bc3 {[%clk 0:01:50.7]} 23... Bh6 {[%clk
0:01:59.1]} 24. Ne3 {[%clk 0:01:48.5]} 24... Kg7 {[%clk 0:01:44.3]} 25. Qa1
{[%clk 0:01:45.6]} 25... Nh7 {[%clk 0:01:29.8]} 26. Qxa4 {[%clk 0:01:32.3]}
26... Bxa4 {[%clk 0:01:30.6]} 27. f4 {[%clk 0:01:33.8]} 27... f6 {[%clk
0:01:28.6]} 28. Ne6+ {[%clk 0:01:28.8]} 28... Kf7 {[%clk 0:01:25.5]} 29. fxe5
{[%clk 0:01:13.6]} 29... Bxe3 {[%clk 0:01:25.5]} 30. exd6 {[%clk 0:01:14.2]}
30... exd6 {[%clk 0:01:25.5]} 31. Ra1 {[%clk 0:00:54.4]} 31... Bxc2 {[%clk
0:01:14.6]} 32. Ra7+ {[%clk 0:00:54.1]} 32... Kg8 {[%clk 0:01:15.9]} 33. Bf3
{[%clk 0:00:33.3]} 33... Bh6 {[%clk 0:01:06.2]} 34. Rd7 {[%clk 0:00:29.2]} 34...
Rb6 {[%clk 0:01:02.2]} 35. Rd8+ {[%clk 0:00:23.9]} 35... Bf8 {[%clk 0:00:54.2]}
36. Bxf6 {[%clk 0:00:22.5]} 36... Nxf6 {[%clk 0:00:52.7]} 37. Rxf8+ {[%clk
0:00:22.1]} 37... Kh7 {[%clk 0:00:53.7]} 38. Rxf6 {[%clk 0:00:23.3]} 38... Rxb2
{[%clk 0:00:54.4]} 39. Ng5+ {[%clk 0:00:19.2]} 39... Kg7 {[%clk 0:00:55.7]} 40.
Rxd6 {[%clk 0:00:19.8]} 40... c4 {[%clk 0:00:57.1]} 41. e5 {[%clk 0:00:20.1]}
41... c3 {[%clk 0:00:54.5]} 42. Rd7+ {[%clk 0:00:21.1]} 42... Kf8 {[%clk
0:00:53.9]} 43. Rc7 {[%clk 0:00:21.9]} 43... Rb3 {[%clk 0:00:51.4]} 44. d6
{[%clk 0:00:23.1]} 44... Bf5 {[%clk 0:00:50.7]} 45. e6 {[%clk 0:00:23.6]} 45...
c2 {[%clk 0:00:51.9]} 46. e7+ {[%clk 0:00:24.1]} 46... Ke8 {[%clk 0:00:47.8]}
47. Bc6+ {[%clk 0:00:24.6]} 1-0

[Event "*** Monthly 3|2 Blitz Masters"]
[Site "Chess.com"]
[Date "2014.10.28"]
[Round "6"]
[White "GMG"]
[Black "GMHess"]
[Result "1-0"]
[WhiteElo "2403"]
[BlackElo "2438"]
[TimeControl "180+2"]
[EndTime "13:04:35 PDT"]
[Termination "GMG won by resignation"]

1. c4 {[%clk 0:02:04]} 1... g6 {[%clk 0:02:58.1]} 2. Nc3 {[%clk 0:02:05.5]} 2...
Bg7 {[%clk 0:02:59.5]} 3. e4 {[%clk 0:02:07]} 3... c5 {[%clk 0:02:59.9]} 4. g3
{[%clk 0:02:05.9]} 4... Nc6 {[%clk 0:03:00.9]} 5. Bg2 {[%clk 0:02:07.4]} 5... a6
{[%clk 0:03:00]} 6. Nge2 {[%clk 0:02:08.4]} 6... Rb8 {[%clk 0:03:01.1]} 7. a4
{[%clk 0:02:09.6]} 7... d6 {[%clk 0:03:00.3]} 8. d3 {[%clk 0:02:09.6]} 8... Nf6
{[%clk 0:02:59.1]} 9. h3 {[%clk 0:02:11.1]} 9... O-O {[%clk 0:02:59.9]} 10. Be3
{[%clk 0:02:12.1]} 10... e5 {[%clk 0:02:54.2]} 11. g4 {[%clk 0:02:12.8]} 11...
Nd4 {[%clk 0:02:54.8]} 12. a5 {[%clk 0:02:09.5]} 12... h5 {[%clk 0:02:41.3]} 13.
g5 {[%clk 0:02:08.9]} 13... Nh7 {[%clk 0:02:41.4]} 14. h4 {[%clk 0:02:05.7]}
14... f5 {[%clk 0:02:40.7]} 15. Bxd4 {[%clk 0:02:03.4]} 15... cxd4 {[%clk
0:02:32]} 16. Nd5 {[%clk 0:02:04.3]} 16... Be6 {[%clk 0:02:32.7]} 17. Ng3 {[%clk
0:01:51.9]} 17... f4 {[%clk 0:02:15.9]} 18. Nf1 {[%clk 0:01:52.7]} 18... Bxd5
{[%clk 0:02:14.3]} 19. exd5 {[%clk 0:01:53.3]} 19... Rf7 {[%clk 0:02:04.7]} 20.
Be4 {[%clk 0:01:51.1]} 20... Nf8 {[%clk 0:02:05.7]} 21. Nd2 {[%clk 0:01:51.1]}
21... b6 {[%clk 0:02:03.7]} 22. axb6 {[%clk 0:01:51.7]} 22... Qxb6 {[%clk
0:02:04.7]} 23. Ra2 {[%clk 0:01:52.7]} 23... Ra7 {[%clk 0:01:53.8]} 24. Qa1
{[%clk 0:01:41.7]} 24... a5 {[%clk 0:01:36.9]} 25. Ke2 {[%clk 0:01:41.8]} 25...
Qc7 {[%clk 0:01:24.3]} 26. Rb1 {[%clk 0:01:39]} 26... Rb4 {[%clk 0:01:18.1]} 27.
Ra4 {[%clk 0:01:38.6]} 27... Kf7 {[%clk 0:01:01.3]} 28. Qa3 {[%clk 0:01:31.2]}
28... Nd7 {[%clk 0:00:37.5]} 29. Nb3 {[%clk 0:01:28.3]} 29... Nc5 {[%clk
0:00:15.7]} 30. Rxa5 {[%clk 0:01:01]} 30... Rxa5 {[%clk 0:00:03.9]} 31. Qxa5
{[%clk 0:01:00.1]} 31... Qxa5 {[%clk 0:00:04]} 32. Nxa5 {[%clk 0:01:00.9]} 32...
Na4 {[%clk 0:00:05.7]} 33. Nc6 {[%clk 0:00:55]} 33... Rb6 {[%clk 0:00:05.4]} 34.
Kd2 {[%clk 0:00:53.7]} 34... Nc3 {[%clk 0:00:04.8]} 35. bxc3 {[%clk 0:00:50.3]}
35... Rxb1 {[%clk 0:00:05.5]} 36. cxd4 {[%clk 0:00:50.7]} 36... exd4 {[%clk
0:00:07.2]} 37. Nd8+ {[%clk 0:00:51.2]} 37... Ke7 {[%clk 0:00:08.5]} 38. Ne6
{[%clk 0:00:52.2]} 38... Be5 {[%clk 0:00:09.8]} 39. Bxg6 {[%clk 0:00:50.8]}
39... Rb2+ {[%clk 0:00:11.1]} 40. Ke1 {[%clk 0:00:51.5]} 40... Rb1+ {[%clk
0:00:12.5]} 41. Ke2 {[%clk 0:00:52.8]} 41... Rh1 {[%clk 0:00:13.8]} 42. Bxh5
{[%clk 0:00:52.9]} 42... Rxh4 {[%clk 0:00:15.5]} 43. Bf3 {[%clk 0:00:53.5]}
43... Rh2 {[%clk 0:00:12.4]} 44. Be4 {[%clk 0:00:54.3]} 44... Kf7 {[%clk
0:00:09.1]} 45. Kf3 {[%clk 0:00:54.3]} 45... Rh3+ {[%clk 0:00:05.6]} 46. Kg4
{[%clk 0:00:54.6]} 46... Rh2 {[%clk 0:00:07.2]} 47. f3 {[%clk 0:00:55]} 47...
Rg2+ {[%clk 0:00:08.1]} 48. Kf5 {[%clk 0:00:56.1]} 48... Ke7 {[%clk 0:00:06.3]}
49. Nxf4 {[%clk 0:00:46.1]} 49... Bxf4 {[%clk 0:00:07.5]} 50. Kxf4 {[%clk
0:00:47.4]} 50... Rg1 {[%clk 0:00:08.6]} 51. Kf5 {[%clk 0:00:48.4]} 51... Kf7
{[%clk 0:00:09.4]} 52. f4 {[%clk 0:00:49.4]} 52... Rg3 {[%clk 0:00:10.2]} 53. c5
{[%clk 0:00:44]} 53... dxc5 {[%clk 0:00:12.1]} 54. d6 {[%clk 0:00:45.2]} 54...
c4 {[%clk 0:00:13.3]} 55. Bd5+ {[%clk 0:00:46.7]} 55... Ke8 {[%clk 0:00:13.3]}
56. Bxc4 {[%clk 0:00:48.3]} 56... Kd7 {[%clk 0:00:14.8]} 57. Ke5 {[%clk
0:00:46.8]} 57... Rg1 {[%clk 0:00:13.5]} 58. Bb5+ {[%clk 0:00:46.3]} 58... Kd8
{[%clk 0:00:15]} 59. Kf6 {[%clk 0:00:47.6]} 59... Rb1 {[%clk 0:00:13.5]} 60. g6
{[%clk 0:00:47.6]} 60... Rxb5 {[%clk 0:00:13.3]} 61. g7 {[%clk 0:00:48.9]} 61...
Kd7 {[%clk 0:00:13.5]} 62. g8=Q {[%clk 0:00:49.4]} 62... Kxd6 {[%clk 0:00:15.4]}
63. Qd8+ {[%clk 0:00:49.9]} 63... Kc5 {[%clk 0:00:16.6]} 64. Ke5 {[%clk
0:00:48.4]} 1-0